bitfinex-derivatives/quotes_BTCF0:USTF0_20260119
["timestamp","ask_amount","ask_price","bid_price","bid_amount"]
[1768861917089,0.010767,92930.0,92915.0,0.09688]
[1768861919792,0.09149199,92932.0,92915.0,0.09688]
[1768861920505,0.00028799,92931.0,92915.0,0.09688]
[1768861920687,0.010768,92928.0,92915.0,0.09688]
[1768861922494,0.010768,92928.0,92917.0,0.10294579]
[1768861922790,0.010768,92928.0,92915.0,0.09688]
[1768861923801,0.010767,92929.0,92915.0,0.09688]
[1768861924098,0.010768,92927.0,92915.0,0.09688]
[1768861924491,0.00503719,92932.0,92915.0,0.09688]
[1768861924796,0.09621807,92932.0,92915.0,0.09688]
[1768861925098,0.09621807,92932.0,92915.0,0.107649]
[1768861925799,0.1056526,92936.0,92915.0,0.11760488]
[1768861926405,0.010768,92928.0,92915.0,0.10683588]
[1768861926699,0.010768,92927.0,92915.0,0.09688]
[1768861927000,0.02063672,92933.0,92912.0,0.10683588]
[1768861927300,0.010768,92924.0,92912.0,0.10683588]
[1768861927594,0.02063672,92933.0,92912.0,0.10683588]
[1768861927790,0.010769,92916.0,92907.0,0.09688]
[1768861928194,0.010769,92919.0,92907.0,0.09688]
[1768861928395,0.10674972,92926.0,92907.0,0.10683588]
[1768861928589,0.010768,92921.0,92907.0,0.11760588]
[1768861928790,0.010769,92919.0,92907.0,0.10683588]
[1768861929095,0.010769,92919.0,92907.0,0.09688]
[1768861930600,0.00986972,92917.0,92907.0,0.09688]
[1768861930995,0.00986972,92917.0,92904.0,0.00236804]
[1768861931301,0.09118088,92918.0,92904.0,0.00236804]
[1768861931894,0.09118088,92918.0,92899.0,0.09692]
[1768861931895,0.10194988,92916.0,92899.0,0.010771]
[1768861932101,0.010769,92914.0,92899.0,0.010771]
[1768861932594,0.010769,92912.0,92897.0,0.10687588]
[1768861932898,0.00986972,92915.0,92897.0,0.09692]
[1768861933095,0.00986972,92915.0,92896.0,0.10376091]
[1768861933284,0.00986972,92915.0,92897.0,0.00995588]
[1768861933488,0.010769,92912.0,92898.0,0.010771]
[1768861933789,0.00986972,92914.0,92896.0,0.09298991]
[1768861934291,0.010769,92913.0,92896.0,0.09298991]
[1768861936000,0.010769,92913.0,92896.0,0.10294579]
[1768861936300,0.010769,92916.0,92897.0,0.010771]
[1768861936508,0.00016138,92920.0,92909.0,0.01077]
[1768861936804,3.8e-07,92920.0,92913.0,0.010769]
[1768861937001,0.09692,92928.0,92915.0,0.010769]
[1768861937192,0.09692,92928.0,92912.0,0.02072488]
[1768861938700,0.09692,92928.0,92912.0,0.010769]
[1768861939303,0.10678972,92928.0,92912.0,0.010769]
[1768861941688,0.00986972,92931.0,92911.0,0.09298991]
[1768861941896,0.10678972,92935.0,92925.0,0.010768]
[1768861942095,0.10678972,92935.0,92922.0,0.010768]
[1768861942799,0.09692,92935.0,92922.0,0.010768]
[1768861945703,0.12720977,92935.0,92922.0,0.010768]
[1768861946492,0.12720977,92935.0,92916.0,0.10375891]
[1768861946697,0.03028977,92932.0,92916.0,0.010769]
[1768861946897,0.010768,92928.0,92913.0,0.04042086]
[1768861947109,0.03028977,92932.0,92913.0,0.04042086]
[1768861948498,0.010767,92929.0,92915.0,0.010769]
[1768861948694,0.03028977,92932.0,92913.0,0.02965186]
[1768861948898,0.03028977,92932.0,92914.0,0.010769]
[1768861950405,0.010767,92929.0,92914.0,0.010769]
[1768861951109,0.03028977,92932.0,92913.0,0.02965186]
[1768861952508,0.010768,92925.0,92913.0,0.02965186]
[1768861953105,0.03028977,92932.0,92911.0,0.09146498]
[1768861953307,0.09692,92936.0,92899.0,0.09146498]
[1768861953308,0.01077,92910.0,92899.0,0.09146498]
[1768861953508,0.01077,92910.0,92893.0,0.09692]
[1768861953509,0.1253772,92909.0,92893.0,0.09692]
[1768861953815,0.03028977,92906.0,92893.0,0.09692]
[1768861954103,0.03028977,92910.0,92893.0,0.09692]
[1768861954307,0.01077,92909.0,92894.0,0.12111684]
[1768861954502,0.01077,92909.0,92895.0,0.02965186]
[1768861955208,0.010769,92912.0,92896.0,0.010771]
[1768861955408,0.09692,92914.0,92899.0,0.02965186]
[1768861955814,0.09692,92914.0,92898.0,0.09146498]
[1768861956413,0.01077,92911.0,92898.0,0.09146498]
[1768861957516,0.09692,92914.0,92898.0,0.09146498]
[1768861957715,0.01077,92909.0,92896.0,0.02965186]
[1768861959910,0.010769,92912.0,92896.0,0.02965186]
[1768861960110,0.12720977,92915.0,92896.0,0.02965186]
[1768861961503,0.01077,92911.0,92896.0,0.02965186]
[1768861963620,0.01077,92909.0,92896.0,0.02965186]
[1768861964317,0.01077,92906.0,92893.0,0.18838498]
[1768861964517,0.01077,92906.0,92893.0,0.23387231]
[1768861964710,0.01077,92906.0,92894.0,0.04548733]
[1768861965112,0.01077,92909.0,92894.0,0.04548733]
[1768861966218,0.18085493,92910.0,92894.0,0.14396865]
[1768861966420,0.01077,92911.0,92894.0,0.14396865]
[1768861966822,0.01077,92911.0,92895.0,0.04548733]
[1768861967224,0.01077,92909.0,92897.0,0.010771]
[1768861967414,0.01077,92909.0,92895.0,0.04548733]
[1768861967415,0.01077,92909.0,92895.0,0.05625833]
[1768861967714,0.01077,92907.0,92895.0,0.05625833]
[1768861968821,0.01077,92909.0,92895.0,0.15473965]
[1768861969022,0.01077,92909.0,92896.0,0.04548733]
[1768861970726,0.00840208,92909.0,92896.0,0.04548733]
[1768861973626,0.00840208,92909.0,92897.0,0.010771]
[1768861973826,0.01077,92907.0,92896.0,0.04548733]
[1768861978342,0.01077,92909.0,92896.0,0.05625833]
[1768861979242,0.01077,92909.0,92898.0,0.010771]
[1768861979535,0.09692,92915.0,92896.0,0.05625833]
[1768861979536,0.01077,92907.0,92896.0,0.05625833]
[1768861979931,0.18085493,92910.0,92899.0,0.010771]
[1768861980534,0.01077,92909.0,92898.0,0.05077831]
[1768861980934,0.01077,92909.0,92898.0,0.06154931]
[1768861981242,0.09692,92915.0,92898.0,0.05077831]
[1768861981941,0.01077,92907.0,92894.0,0.010771]
[1768861982144,0.01077,92909.0,92894.0,0.010771]
[1768861982330,0.01077,92908.0,92894.0,0.010771]
[1768861982532,0.01077,92908.0,92894.0,0.06154931]
[1768861982842,0.01077,92908.0,92894.0,0.15263377]
[1768861983239,0.01077,92908.0,92895.0,0.05077831]
[1768861983442,0.18085493,92910.0,92895.0,0.05077831]
[1768861984641,0.01077,92907.0,92895.0,0.05077831]
[1768861985138,0.01077,92905.0,92895.0,0.05077831]
[1768861985441,0.01077,92907.0,92895.0,0.05077831]
[1768861985642,0.18085493,92910.0,92895.0,0.05077831]
[1768861985845,0.010771,92898.0,92891.0,0.09692]
[1768861986038,0.09628235,92907.0,92891.0,0.09692]
[1768861986235,0.010771,92902.0,92891.0,0.09692]
[1768861986542,0.010771,92902.0,92891.0,0.18800446]
[1768861987243,0.010771,92902.0,92892.0,0.09108446]
[1768861987932,0.010771,92902.0,92892.0,0.14186277]
[1768861988537,0.010771,92902.0,92893.0,0.14186277]
[1768861988743,0.18085493,92910.0,92893.0,0.14186277]
[1768861989249,0.010771,92902.0,92893.0,0.14186277]
[1768861989747,0.010771,92900.0,92893.0,0.09108446]
[1768861991144,0.010771,92900.0,92893.0,0.14186277]
[1768861994648,0.010771,92899.0,92893.0,0.14186277]
[1768861997350,0.010771,92895.0,92893.0,7.7e-07]
[1768861997535,0.05402307,92909.0,92890.0,7.7e-07]
[1768861997847,0.010771,92895.0,92889.0,2e-07]
[1768861998040,0.010772,92893.0,92889.0,2e-07]
[1768861998443,0.010771,92896.0,92889.0,2e-07]
[1768861998645,0.010771,92899.0,92889.0,2e-07]
[1768861999145,0.010771,92897.0,92889.0,2e-07]
[1768862000142,0.010771,92896.0,92889.0,2e-07]
[1768862002252,0.15030542,92898.0,92887.0,6.6e-07]
[1768862002453,0.05402307,92895.0,92887.0,6.6e-07]
[1768862003049,0.09628235,92898.0,92887.0,6.6e-07]
[1768862003347,0.07857922,92899.0,92887.0,6.6e-07]
[1768862007457,0.08935022,92899.0,92887.0,6.6e-07]
[1768862008457,0.010771,92897.0,92887.0,6.6e-07]
[1768862010656,0.010771,92897.0,92887.0,0.20000066]
[1768862010853,0.010773,92884.0,92878.0,0.09940745]
[1768862011058,0.07857922,92883.0,92871.0,0.010774]
[1768862011248,0.07857922,92887.0,92869.0,0.00236894]
[1768862011448,0.010772,92886.0,92871.0,0.010774]
[1768862011655,0.08935122,92886.0,92871.0,0.010774]
[1768862011959,8.721e-05,92885.0,92869.0,0.00236894]
[1768862012952,8.721e-05,92885.0,92874.0,0.010774]
[1768862013154,8.721e-05,92885.0,92876.0,0.010773]
[1768862014356,8.721e-05,92885.0,92873.0,0.010774]
[1768862014562,8.721e-05,92885.0,92869.0,0.00236894]
[1768862015151,8.721e-05,92885.0,92869.0,0.07580112]
[1768862015458,8.721e-05,92885.0,92876.0,0.010773]
[1768862015652,8.721e-05,92885.0,92869.0,0.07580112]
[1768862015854,8.721e-05,92885.0,92879.0,0.010773]
[1768862017551,8.721e-05,92885.0,92880.0,0.010773]
[1768862018360,8.721e-05,92885.0,92881.0,0.010773]
[1768862019463,8.721e-05,92885.0,92879.0,0.010773]
[1768862020462,0.010773,92882.0,92871.0,0.09149981]
[1768862020663,0.17251154,92885.0,92869.0,0.00236894]
[1768862020851,0.07857922,92884.0,92869.0,0.00236894]
[1768862021163,0.08935222,92884.0,92870.0,0.010774]
[1768862021560,0.010773,92882.0,92870.0,0.010774]
[1768862021762,0.010773,92882.0,92869.0,0.00236894]
[1768862022159,0.010773,92883.0,92869.0,0.00236894]
[1768862022358,0.09393232,92885.0,92869.0,0.00236894]
[1768862022664,0.010773,92884.0,92869.0,0.00236894]
[1768862022865,8.721e-05,92885.0,92869.0,0.00236894]
[1768862024067,0.09592289,92885.0,92869.0,0.00236894]
[1768862024269,0.010773,92884.0,92869.0,0.01314294]
[1768862024465,8.721e-05,92885.0,92871.0,0.010774]
[1768862025461,0.01086021,92885.0,92871.0,0.010774]
[1768862025664,8.721e-05,92885.0,92869.0,0.00236894]
[1768862025863,0.10669589,92885.0,92869.0,0.00236894]
[1768862026581,0.010773,92882.0,92869.0,0.00236894]
[1768862027673,0.09583568,92877.0,92869.0,9.4e-07]
[1768862027973,0.010774,92872.0,92857.0,0.08978901]
[1768862028362,0.010774,92872.0,92858.0,0.08978901]
[1768862028572,0.00016146,92874.0,92858.0,0.08978901]
[1768862028762,0.010775,92867.0,92853.0,0.09696]
[1768862029166,0.010775,92864.0,92853.0,0.09696]
[1768862029362,0.09875299,92870.0,92853.0,0.09696]
[1768862029563,0.010775,92864.0,92848.0,0.0914222]
[1768862029770,0.010775,92864.0,92846.0,0.08989259]
[1768862029973,0.010775,92864.0,92846.0,0.00010358]
[1768862029974,0.09583568,92863.0,92846.0,0.00010358]
[1768862030173,0.010775,92862.0,92846.0,0.00010358]
[1768862030470,0.09583568,92863.0,92846.0,0.00010358]
[1768862030674,0.09583568,92862.0,92846.0,0.00010358]
[1768862030867,0.09583568,92861.0,92849.0,4.5e-07]
[1768862031174,0.010776,92852.0,92849.0,4.5e-07]
[1768862031375,0.09583568,92861.0,92849.0,4.5e-07]
[1768862031675,0.010776,92852.0,92849.0,4.5e-07]
[1768862031869,0.09583568,92861.0,92849.0,4.5e-07]
[1768862032075,0.09583568,92857.0,92837.0,0.1883822]
[1768862032272,0.09583568,92856.0,92837.0,0.1883822]
[1768862032471,0.19458867,92856.0,92838.0,0.0024736]
[1768862032782,0.010775,92864.0,92824.0,0.18358129]
[1768862032783,0.09583568,92844.0,92824.0,0.18358129]
[1768862033073,0.010778,92834.0,92829.0,9.6e-07]
[1768862033379,0.0001223,92843.0,92829.0,9.6e-07]
[1768862033380,0.09554558,92841.0,92829.0,9.6e-07]
[1768862033875,0.09554558,92839.0,92829.0,9.6e-07]
[1768862034087,0.010778,92834.0,92829.0,9.6e-07]
[1768862034279,0.010779,92832.0,92829.0,9.6e-07]
[1768862034576,0.010779,92832.0,92813.0,0.010781]
[1768862034577,0.10632458,92828.0,92808.0,0.2032439]
[1768862034772,0.09554558,92828.0,92808.0,0.2140249]
[1768862035078,0.010779,92827.0,92809.0,0.19282783]
[1768862035278,0.09554558,92827.0,92809.0,0.09654393]
[1768862035669,0.01078,92819.0,92809.0,0.09654393]
[1768862036481,0.09554558,92821.0,92804.0,0.0024914]
[1768862036870,0.010781,92816.0,92804.0,0.0024914]
[1768862037180,0.01078,92819.0,92804.0,0.0024914]
[1768862037378,0.01094155,92819.0,92804.0,0.0024914]
[1768862037976,0.00016155,92819.0,92804.0,0.0024914]
[1768862038174,0.01078,92818.0,92804.0,0.0024914]
[1768862039586,0.00016155,92819.0,92804.0,0.0024914]
[1768862040285,0.01078,92818.0,92804.0,0.0024914]
[1768862041088,0.00016155,92819.0,92804.0,0.0024914]
[1768862041089,0.01094155,92819.0,92804.0,0.0024914]
[1768862042075,0.00016155,92819.0,92804.0,0.0024914]
[1768862042272,0.00016155,92819.0,92804.0,0.0132734]
[1768862042575,0.00016155,92819.0,92806.0,0.010782]
[1768862043190,0.010779,92833.0,92821.0,0.0962839]
[1768862043385,0.097,92836.0,92822.0,0.0962839]
[1768862043587,0.107778,92836.0,92822.0,0.0962839]
[1768862043788,0.107778,92836.0,92821.0,0.09417346]
[1768862043988,0.010778,92836.0,92821.0,0.09417346]
[1768862044286,0.097,92838.0,92821.0,0.09417346]
[1768862044485,0.09288625,92841.0,92822.0,0.0962839]
[1768862044687,0.09554558,92844.0,92823.0,0.19045736]
[1768862044986,0.097,92845.0,92831.0,0.010779]
[1768862045786,0.097,92845.0,92832.0,0.0962839]
[1768862046479,0.09554558,92851.0,92830.0,0.0962839]
[1768862046676,0.097,92851.0,92837.0,0.0962839]
[1768862046875,0.09554558,92862.0,92841.0,0.0962839]
[1768862047081,0.010776,92856.0,92841.0,0.1070619]
[1768862047287,0.010776,92856.0,92841.0,0.010778]
[1768862047587,0.097,92858.0,92841.0,0.010778]
[1768862048090,0.010776,92857.0,92841.0,0.010778]
[1768862048289,0.19254558,92858.0,92840.0,0.09417346]
[1768862049390,0.09554558,92857.0,92839.0,0.00016155]
[1768862049588,0.010776,92854.0,92839.0,0.00016155]
[1768862050485,0.09554558,92852.0,92839.0,0.00016155]
[1768862050679,0.010778,92837.0,92826.0,0.097]
[1768862051783,0.09554558,92842.0,92826.0,0.097]
[1768862052178,0.010778,92840.0,92826.0,0.097]
[1768862052990,0.010778,92839.0,92826.0,0.097]
[1768862054084,0.010778,92841.0,92827.0,0.010779]
[1768862054401,0.010778,92839.0,92826.0,0.097]
[1768862055081,0.010778,92839.0,92816.0,0.01078]
[1768862055082,0.09554558,92837.0,92816.0,0.19045736]
[1768862055383,0.010779,92833.0,92820.0,0.01078]
[1768862055585,0.010778,92836.0,92820.0,0.01078]
[1768862056090,0.01093955,92836.0,92820.0,0.01078]
[1768862056479,0.00016155,92836.0,92819.0,0.0962839]
[1768862056685,0.00016155,92836.0,92824.0,0.01078]
[1768862056890,0.00016155,92836.0,92822.0,0.19045736]
[1768862057090,0.107777,92845.0,92830.0,0.010779]
[1768862057285,0.097,92849.0,92835.0,0.010778]
[1768862057587,0.097,92849.0,92832.0,0.09417346]
[1768862057789,0.097,92849.0,92837.0,0.19045736]
[1768862057994,0.097,92849.0,92839.0,0.010778]
[1768862058194,0.107776,92852.0,92839.0,0.010778]
[1768862058586,0.010777,92850.0,92835.0,0.010778]
[1768862059589,0.010777,92850.0,92837.0,0.010778]
[1768862059793,0.097,92852.0,92837.0,0.010778]
[1768862060384,0.010777,92851.0,92837.0,0.010778]
[1768862061294,0.010776,92854.0,92835.0,0.0962839]
[1768862061494,0.010776,92852.0,92840.0,0.010778]
[1768862062095,0.097,92853.0,92840.0,0.010778]
[1768862062599,0.010776,92852.0,92837.0,0.010778]
[1768862062894,0.010776,92852.0,92839.0,0.010778]
[1768862064007,0.010777,92850.0,92838.0,0.010778]
[1768862064307,0.10809033,92855.0,92840.0,0.010778]
[1768862064501,0.010776,92852.0,92837.0,0.010778]
[1768862065003,0.010776,92852.0,92839.0,0.010778]
[1768862067505,0.11886633,92852.0,92839.0,0.010778]
[1768862069104,0.097,92854.0,92843.0,0.010777]
[1768862069295,0.097,92854.0,92836.0,0.117235]
[1768862070407,0.097,92855.0,92846.0,0.117235]
[1768862070701,0.010775,92862.0,92850.0,0.010776]
[1768862070907,0.010775,92860.0,92848.0,0.010777]
[1768862071106,0.010775,92860.0,92847.0,0.010777]
[1768862071405,0.010775,92860.0,92847.0,0.01093855]
[1768862072398,0.20110372,92860.0,92847.0,0.00016155]
[1768862073203,0.02605633,92859.0,92847.0,0.00016155]
[1768862073406,0.20110372,92860.0,92847.0,0.00016155]
[1768862073607,0.02605674,92859.0,92847.0,0.00016155]
[1768862073806,0.20110372,92860.0,92847.0,0.00016155]
[1768862074006,0.02605678,92859.0,92847.0,0.00016155]
[1768862074309,0.09936906,92864.0,92847.0,0.09937298]
[1768862074610,0.02606276,92863.0,92849.0,0.18112863]
[1768862074797,0.02606276,92862.0,92849.0,0.18112863]
[1768862075110,0.010775,92863.0,92849.0,0.18112863]
[1768862075402,0.010775,92863.0,92849.0,0.19190563]
[1768862076714,0.010775,92863.0,92849.0,0.18112863]
[1768862077610,0.09936906,92864.0,92852.0,0.128011]
[1768862077811,0.09936906,92864.0,92850.0,0.09921143]
[1768862078109,0.09936906,92864.0,92852.0,0.010776]
[1768862078314,0.09936906,92864.0,92854.0,0.010776]
[1768862078711,0.00236906,92864.0,92856.0,0.010776]
[1768862078902,0.010774,92872.0,92855.0,0.21644643]
[1768862079125,0.12288307,92871.0,92859.0,0.18112863]
[1768862079308,0.03665707,92870.0,92859.0,0.18112863]
[1768862079613,0.010774,92870.0,92859.0,0.18112863]
[1768862080013,0.010774,92870.0,92856.0,0.117235]
[1768862080313,0.10809033,92880.0,92865.0,0.010775]
[1768862080503,0.20509033,92880.0,92864.0,0.010775]
[1768862081003,0.20509033,92880.0,92866.0,0.010775]
[1768862081617,0.20509033,92880.0,92868.0,0.010774]
[1768862082008,0.097,92880.0,92870.0,0.18112863]
[1768862082210,0.097,92880.0,92868.0,0.010774]
[1768862082714,0.00236855,92884.0,92870.0,0.19190263]
[1768862082909,0.010773,92884.0,92870.0,0.19190263]
[1768862083110,0.010772,92887.0,92870.0,0.19190263]
[1768862083308,0.12598022,92887.0,92870.0,0.19190263]
[1768862083807,0.11520822,92887.0,92870.0,0.18112863]
[1768862084208,0.11520822,92887.0,92873.0,0.010774]
[1768862084924,0.11520822,92887.0,92870.0,0.19190263]
[1768862085107,0.010772,92886.0,92870.0,0.19190263]
[1768862085302,0.010773,92884.0,92870.0,0.19190263]
[1768862085506,0.11520822,92887.0,92874.0,0.010774]
[1768862085716,0.11520822,92887.0,92871.0,0.010774]
[1768862086013,0.11520822,92887.0,92873.0,0.010774]
[1768862087418,0.11520822,92887.0,92870.0,0.18112863]
[1768862088922,0.11520822,92887.0,92876.0,0.010773]
[1768862089923,0.09831511,92886.0,92870.0,0.18112863]
[1768862090215,0.11520822,92882.0,92870.0,0.18112863]
[1768862090612,0.11520822,92886.0,92870.0,0.18112863]
[1768862091522,0.010773,92885.0,92871.0,0.010774]
[1768862091719,0.11520822,92887.0,92873.0,0.010774]
[1768862092721,0.11520822,92887.0,92870.0,0.18112863]
[1768862093026,0.010772,92886.0,92871.0,0.010774]
[1768862094323,0.11098631,92886.0,92871.0,0.010774]
[1768862094517,0.010773,92884.0,92871.0,0.010774]
[1768862099629,0.11098631,92886.0,92872.0,0.010774]
[1768862099830,0.12175831,92886.0,92872.0,0.010774]
[1768862100228,0.010773,92885.0,92872.0,0.010774]
[1768862102633,0.010773,92885.0,92870.0,0.18112863]
[1768862102935,0.010772,92887.0,92873.0,0.010774]
[1768862103232,0.12175831,92887.0,92873.0,0.010774]
[1768862103632,0.11098631,92887.0,92873.0,0.010774]
[1768862104134,0.20944722,92887.0,92873.0,0.010774]
[1768862104335,0.107772,92888.0,92865.0,0.09696]
[1768862104336,0.11098631,92884.0,92865.0,0.09696]
[1768862104532,0.11098631,92884.0,92870.0,0.18112863]
[1768862104734,0.11098631,92884.0,92865.0,0.09696]
[1768862105935,0.010773,92879.0,92865.0,0.09696]
[1768862107434,0.11098631,92884.0,92865.0,0.09696]
[1768862108638,0.010773,92880.0,92865.0,0.20570511]
[1768862109525,0.010773,92880.0,92865.0,0.10874511]
[1768862109735,0.010773,92880.0,92870.0,0.18112863]
[1768862109927,0.010773,92880.0,92865.0,0.10874511]
[1768862109928,0.010773,92880.0,92865.0,0.11952011]
[1768862111237,0.010773,92880.0,92870.0,0.18112863]
[1768862112638,0.010773,92883.0,92870.0,0.18112863]
[1768862113046,0.09846091,92885.0,92870.0,0.18112863]
[1768862113437,0.010773,92884.0,92870.0,0.18112863]
[1768862114141,0.09846091,92885.0,92870.0,0.18112863]
[1768862114341,0.010773,92882.0,92870.0,0.18112863]
[1768862115035,0.010773,92882.0,92867.0,0.010775]
[1768862115237,0.010773,92880.0,92867.0,0.010775]
[1768862116338,0.010773,92880.0,92865.0,0.2015465]
[1768862116542,0.010773,92880.0,92866.0,0.010775]
[1768862117046,0.010773,92882.0,92865.0,0.2015465]
[1768862118347,0.010773,92883.0,92869.0,0.010774]
[1768862118848,0.010773,92882.0,92865.0,0.2015465]
[1768862119951,0.010773,92882.0,92866.0,0.10874511]
[1768862120151,0.010773,92882.0,92868.0,0.010774]
[1768862122253,0.20944722,92885.0,92867.0,0.010774]
[1768862122452,0.010773,92882.0,92868.0,0.010774]
[1768862125956,0.21564481,92886.0,92870.0,0.010774]
[1768862127560,0.010773,92884.0,92870.0,0.010774]
[1768862127858,0.010773,92884.0,92872.0,0.010774]
[1768862128262,0.22641681,92886.0,92872.0,0.010774]
[1768862128760,0.22641681,92886.0,92872.0,0.00840455]
[1768862131159,0.11868481,92885.0,92872.0,0.00840455]
[1768862131772,0.12945781,92885.0,92872.0,0.00840455]
[1768862131974,0.11868481,92885.0,92870.0,0.18112863]
[1768862132868,0.00236843,92889.0,92873.0,0.10911985]
[1768862133057,0.107731,92902.0,92881.0,0.10911985]
[1768862133262,0.02506436,92901.0,92881.0,0.10911985]
[1768862133459,0.02506436,92900.0,92881.0,0.10911985]
[1768862133771,0.02506436,92899.0,92888.0,0.010772]
[1768862133966,0.02506436,92898.0,92888.0,0.010772]
[1768862134272,0.107731,92902.0,92888.0,0.010772]
[1768862134273,0.02506436,92897.0,92888.0,0.010772]
[1768862134477,0.1877416,92902.0,92886.0,0.010772]
[1768862134773,0.02471225,92901.0,92886.0,0.010772]
[1768862134957,0.010771,92898.0,92885.0,0.010772]
[1768862135156,0.02471225,92897.0,92885.0,0.010772]
[1768862135356,0.11868481,92900.0,92885.0,0.010772]
[1768862135574,0.15416356,92899.0,92885.0,0.010772]
[1768862135774,0.02470775,92898.0,92885.0,0.010772]
[1768862136071,0.02470775,92897.0,92885.0,0.010772]
[1768862136374,0.12945581,92899.0,92885.0,0.010772]
[1768862136573,0.02470447,92898.0,92885.0,0.010772]
[1768862136872,0.12945581,92899.0,92885.0,0.010772]
[1768862137173,0.02470447,92898.0,92885.0,0.010772]
[1768862137472,0.12945581,92899.0,92885.0,0.010772]
[1768862137672,0.02470194,92898.0,92885.0,0.010772]
[1768862137874,0.12945581,92899.0,92885.0,0.010772]
[1768862138069,0.02470196,92898.0,92885.0,0.010772]
[1768862138273,0.11868481,92899.0,92881.0,0.10911985]
[1768862138476,0.0246999,92898.0,92886.0,0.010772]
[1768862138662,0.12945581,92899.0,92886.0,0.010772]
[1768862138865,0.02469989,92898.0,92886.0,0.010772]
[1768862139062,0.12945581,92899.0,92886.0,0.010772]
[1768862139274,0.02469987,92898.0,92884.0,0.010773]
[1768862139474,0.12945581,92899.0,92884.0,0.010773]
[1768862139677,0.010771,92898.0,92884.0,0.010773]
[1768862139874,0.11868481,92899.0,92886.0,0.010772]
[1768862140569,0.010771,92899.0,92885.0,0.010772]
[1768862140774,0.30642641,92902.0,92880.0,0.20053098]
[1768862140775,0.12945581,92901.0,92887.0,0.010772]
[1768862140964,0.02469651,92900.0,92886.0,0.010772]
[1768862141159,0.11868481,92901.0,92886.0,0.010772]
[1768862141363,0.0246965,92900.0,92884.0,0.11008904]
[1768862141677,0.09696,92902.0,92885.0,0.11008904]
[1768862141877,0.09696,92902.0,92891.0,0.010772]
[1768862142775,0.010771,92901.0,92887.0,0.010772]
[1768862143074,0.09696,92902.0,92890.0,0.010772]
[1768862143866,0.107731,92902.0,92890.0,0.010772]
[1768862144267,0.107731,92902.0,92888.0,0.010772]
[1768862145280,0.107731,92902.0,92889.0,0.010772]
[1768862147181,0.09696,92902.0,92886.0,0.11008904]
[1768862147980,0.09696,92902.0,92890.0,0.010772]
[1768862149273,0.107731,92902.0,92890.0,0.010772]
[1768862149474,0.09696,92902.0,92890.0,0.010772]
[1768862149670,0.107731,92902.0,92890.0,0.010772]
[1768862150474,0.00236804,92904.0,92890.0,0.010772]
[1768862150778,0.00236804,92904.0,92892.0,0.010772]
[1768862151166,0.11705473,92904.0,92885.0,0.20675164]
[1768862151371,0.01313804,92904.0,92892.0,0.010772]
[1768862151766,0.01313804,92904.0,92893.0,0.010772]
[1768862151767,0.00236804,92904.0,92893.0,0.010772]
[1768862151972,4e-08,92904.0,92895.0,0.20675164]
[1768862152167,0.00236792,92909.0,92900.0,0.010771]
[1768862152581,0.00236792,92909.0,92902.0,0.010771]
[1768862154472,0.00236792,92909.0,92899.0,0.010771]
[1768862154767,0.00236792,92909.0,92901.0,0.010771]
[1768862155571,0.00236792,92909.0,92902.0,0.01077]
[1768862156184,0.010769,92916.0,92904.0,0.01077]
[1768862157881,0.09696,92917.0,92904.0,0.01077]
[1768862158082,0.010769,92916.0,92899.0,0.18504074]
[1768862158275,0.09696,92917.0,92904.0,0.01077]
[1768862158476,0.010769,92914.0,92899.0,0.18504074]
[1768862158781,0.107729,92917.0,92903.0,0.01077]
[1768862159387,0.00236753,92924.0,92908.0,0.18504074]
[1768862159582,0.00236753,92924.0,92913.0,0.010769]
[1768862160679,0.00236753,92924.0,92909.0,0.09350754]
[1768862160881,0.09640262,92923.0,92905.0,0.09692]
[1768862161487,0.10112718,92924.0,92905.0,0.19042754]
[1768862163381,0.010769,92918.0,92905.0,0.19042754]
[1768862163580,0.010768,92921.0,92905.0,0.20119754]
[1768862165181,0.10112718,92924.0,92905.0,0.19042754]
[1768862165399,0.010768,92921.0,92906.0,0.01077]
[1768862167096,0.00236741,92929.0,92913.0,0.10427654]
[1768862167288,0.01313441,92929.0,92913.0,0.10427654]
[1768862167591,0.01313441,92929.0,92913.0,0.010769]
[1768862167891,0.10953703,92929.0,92913.0,0.010769]
[1768862168289,0.010768,92926.0,92912.0,0.010769]
[1768862168693,0.10953703,92929.0,92912.0,0.010769]
[1768862168992,0.10953703,92929.0,92914.0,0.010769]
[1768862169494,4.1e-07,92929.0,92914.0,0.18504074]
[1768862169698,0.09692,92939.0,92924.0,0.010768]
[1768862169886,0.22332262,92939.0,92924.0,0.010768]
[1768862170083,0.09640262,92938.0,92924.0,0.010768]
[1768862170284,0.12640262,92938.0,92924.0,0.010768]
[1768862170483,0.13716862,92938.0,92924.0,0.010768]
[1768862171899,0.010767,92936.0,92921.0,0.010768]
[1768862172098,0.03,92936.0,92917.0,0.18504074]
[1768862172286,0.09640262,92938.0,92925.0,0.010768]
[1768862172486,0.03,92938.0,92925.0,0.010768]
[1768862172993,0.010767,92937.0,92925.0,0.010768]
[1768862173195,0.020767,92937.0,92925.0,0.010768]
[1768862173792,0.020767,92937.0,92918.0,0.09350754]
[1768862174199,0.020767,92937.0,92924.0,0.010768]
[1768862175697,0.01,92937.0,92918.0,0.09350754]
[1768862175901,0.010767,92933.0,92919.0,0.010768]
[1768862176693,0.010767,92933.0,92906.0,0.01077]
[1768862176694,0.09640262,92923.0,92901.0,0.0915332]
[1768862176898,0.10717062,92923.0,92905.0,0.09692]
[1768862177103,0.10717062,92923.0,92906.0,0.09692]
[1768862177300,0.10717062,92923.0,92908.0,0.01077]
[1768862177499,0.010768,92923.0,92908.0,0.01077]
[1768862177694,0.010768,92923.0,92909.0,0.01077]
[1768862178398,0.09875965,92924.0,92906.0,0.09692]
[1768862178795,0.010768,92921.0,92909.0,0.01077]
[1768862178994,0.010768,92923.0,92909.0,0.01077]
[1768862179191,0.010768,92922.0,92909.0,0.01077]
[1768862179597,0.09640262,92921.0,92906.0,0.09692]
[1768862179905,0.010769,92918.0,92906.0,0.09692]
[1768862180101,0.010769,92918.0,92904.0,0.01077]
[1768862180517,0.09692,92928.0,92889.0,0.09390163]
[1768862180518,0.09640262,92914.0,92889.0,0.09390163]
[1768862180712,0.09640262,92911.0,92891.0,0.09692]
[1768862180912,0.09640262,92911.0,92898.0,0.010771]
[1768862181910,0.09875965,92910.0,92898.0,0.010771]